[Event "*** Titled Tuesday Blitz"]
[Site "Chess.com"]
[Date "2020.04.28"]
[Round "8"]
[White "ItsCheckM8Mate"]
[Black "Pedrada88"]
[Result "1-0"]
[WhiteElo "2272"]
[BlackElo "2387"]
[TimeControl "180+1"]
[EndTime "11:36:11 PDT"]
[Termination "ItsCheckM8Mate won by checkmate"]

1. e4 {[%clk 0:03:00.9]} 1... c5 {[%clk 0:03:00.2]} 2. Nf3 {[%clk 0:02:58.8]}
2... Nc6 {[%clk 0:03:00.4]} 3. d4 {[%clk 0:02:58.9]} 3... cxd4 {[%clk
0:03:01.3]} 4. Nxd4 {[%clk 0:02:59.1]} 4... Nf6 {[%clk 0:03:02]} 5. Nc3 {[%clk
0:02:59.2]} 5... e6 {[%clk 0:03:02.5]} 6. Ndb5 {[%clk 0:02:59]} 6... Bc5 {[%clk
0:03:02.5]} 7. Nd6+ {[%clk 0:02:48.5]} 7... Ke7 {[%clk 0:03:02.6]} 8. Bf4 {[%clk
0:02:31.2]} 8... e5 {[%clk 0:03:01.3]} 9. Nf5+ {[%clk 0:02:28.5]} 9... Kf8
{[%clk 0:03:01.5]} 10. Bg5 {[%clk 0:02:23.2]} 10... Bb4 {[%clk 0:03:01.6]} 11.
Bc4 {[%clk 0:02:03.3]} 11... d5 {[%clk 0:02:59.3]} 12. Bxf6 {[%clk 0:01:30]}
12... Qxf6 {[%clk 0:02:54.4]} 13. Qxd5 {[%clk 0:01:15.9]} 13... Bxf5 {[%clk
0:02:34]} 14. exf5 {[%clk 0:01:15.4]} 14... Rd8 {[%clk 0:02:33.9]} 15. Qe4
{[%clk 0:01:12.2]} 15... Rd4 {[%clk 0:02:30.4]} 16. Qe2 {[%clk 0:01:12.4]} 16...
Qxf5 {[%clk 0:02:27.7]} 17. O-O {[%clk 0:01:11.2]} 17... h5 {[%clk 0:02:15.8]}
18. Bd3 {[%clk 0:01:07.6]} 18... Qe6 {[%clk 0:02:06]} 19. Ne4 {[%clk 0:01:06.4]}
19... Be7 {[%clk 0:01:59.4]} 20. c3 {[%clk 0:01:06]} 20... Rd8 {[%clk
0:01:59.1]} 21. Bc4 {[%clk 0:01:05.4]} 21... Qg4 {[%clk 0:01:50.1]} 22. f3
{[%clk 0:00:59.4]} 22... Qg6 {[%clk 0:01:41.9]} 23. Rad1 {[%clk 0:00:58.5]}
23... f5 {[%clk 0:01:36.5]} 24. Nf2 {[%clk 0:00:54.5]} 24... h4 {[%clk
0:01:33.2]} 25. Kh1 {[%clk 0:00:50.3]} 25... Rh6 {[%clk 0:01:14.6]} 26. Bd5
{[%clk 0:00:49.4]} 26... Bd6 {[%clk 0:00:50.1]} 27. Qc4 {[%clk 0:00:35.1]} 27...
Rc8 {[%clk 0:00:38.5]} 28. Qb5 {[%clk 0:00:31.8]} 28... Rc7 {[%clk 0:00:33.1]}
29. Bxc6 {[%clk 0:00:30.6]} 29... bxc6 {[%clk 0:00:33]} 30. Qb8+ {[%clk
0:00:30.3]} 30... Ke7 {[%clk 0:00:33]} 31. Rfe1 {[%clk 0:00:22.8]} 31... Qe8
{[%clk 0:00:30.1]} 32. Qb3 {[%clk 0:00:19.3]} 32... Qf7 {[%clk 0:00:27.6]} 33.
Qa4 {[%clk 0:00:16.8]} 33... Re6 {[%clk 0:00:25.6]} 34. Nd3 {[%clk 0:00:16.8]}
34... h3 {[%clk 0:00:20.3]} 35. g3 {[%clk 0:00:15.5]} 35... Qh5 {[%clk
0:00:20.5]} 36. Re3 {[%clk 0:00:11]} 36... e4 {[%clk 0:00:20.4]} 37. fxe4 {[%clk
0:00:09.6]} 37... Qxd1+ {[%clk 0:00:20.2]} 38. Qxd1 {[%clk 0:00:08.6]} 38...
fxe4 {[%clk 0:00:19.7]} 39. Nf4 {[%clk 0:00:08.7]} 39... Rd7 {[%clk 0:00:18.9]}
40. Qe1 {[%clk 0:00:08.7]} 40... Kd8 {[%clk 0:00:10.5]} 41. Nxe6+ {[%clk
0:00:08.6]} 41... Ke7 {[%clk 0:00:10.1]} 42. Rxe4 {[%clk 0:00:09.1]} 42... Kf6
{[%clk 0:00:10.5]} 43. Nd4 {[%clk 0:00:08.6]} 43... c5 {[%clk 0:00:09.3]} 44.
Re6+ {[%clk 0:00:08.8]} 44... Kf7 {[%clk 0:00:09.3]} 45. Qf2+ {[%clk 0:00:07.9]}
45... Kg8 {[%clk 0:00:08.7]} 46. Qf3 {[%clk 0:00:05.9]} 46... cxd4 {[%clk
0:00:08.1]} 47. Re8+ {[%clk 0:00:06.1]} 47... Kh7 {[%clk 0:00:07.9]} 48. Qh5#
{[%clk 0:00:06.4]} 1-0

[Event "*** Titled Tuesday Blitz"]
[Site "Chess.com"]
[Date "2020.04.28"]
[Round "8"]
[White "tsvet2005"]
[Black "imdarealist"]
[Result "1-0"]
[WhiteElo "2512"]
[BlackElo "2301"]
[TimeControl "180+1"]
[EndTime "11:36:12 PDT"]
[Termination "tsvet2005 won on time"]

1. d4 {[%clk 0:03:00.9]} 1... d5 {[%clk 0:02:58.4]} 2. c4 {[%clk 0:03:01.2]}
2... e6 {[%clk 0:02:58.6]} 3. Nc3 {[%clk 0:03:01.4]} 3... Nf6 {[%clk 0:02:56.7]}
4. cxd5 {[%clk 0:03:01.4]} 4... exd5 {[%clk 0:02:57]} 5. Bg5 {[%clk 0:03:01.2]}
5... c6 {[%clk 0:02:57.7]} 6. e3 {[%clk 0:03:01.2]} 6... Bd6 {[%clk 0:02:58.2]}
7. Bd3 {[%clk 0:02:59.6]} 7... O-O {[%clk 0:02:58.6]} 8. Nge2 {[%clk 0:02:59.3]}
8... Re8 {[%clk 0:02:56.7]} 9. Qc2 {[%clk 0:02:53.1]} 9... h6 {[%clk 0:02:56.4]}
10. Bh4 {[%clk 0:02:53.2]} 10... a5 {[%clk 0:02:56.1]} 11. Bg3 {[%clk
0:02:48.7]} 11... Na6 {[%clk 0:02:50.6]} 12. a3 {[%clk 0:02:48.7]} 12... Nc7
{[%clk 0:02:47.3]} 13. O-O {[%clk 0:02:48.3]} 13... Ne6 {[%clk 0:02:40.5]} 14.
Rae1 {[%clk 0:02:42.3]} 14... Ng5 {[%clk 0:02:39.4]} 15. Bxd6 {[%clk 0:02:37.3]}
15... Qxd6 {[%clk 0:02:37.7]} 16. Ng3 {[%clk 0:02:38.2]} 16... Bd7 {[%clk
0:02:15.9]} 17. f3 {[%clk 0:02:31.9]} 17... Rad8 {[%clk 0:02:12.7]} 18. Na4
{[%clk 0:02:28]} 18... Qc7 {[%clk 0:01:53.9]} 19. e4 {[%clk 0:02:18.4]} 19...
dxe4 {[%clk 0:01:51.3]} 20. fxe4 {[%clk 0:02:19.3]} 20... Bc8 {[%clk 0:01:46.3]}
21. e5 {[%clk 0:01:35.7]} 21... Nd5 {[%clk 0:01:23.1]} 22. Nc5 {[%clk
0:01:35.3]} 22... b6 {[%clk 0:01:15]} 23. Nce4 {[%clk 0:01:34.8]} 23... Nxe4
{[%clk 0:01:09]} 24. Nxe4 {[%clk 0:01:35.7]} 24... c5 {[%clk 0:01:09.6]} 25. Nd6
{[%clk 0:01:30.1]} 25... Re7 {[%clk 0:01:05.7]} 26. dxc5 {[%clk 0:01:24.3]}
26... bxc5 {[%clk 0:00:55.3]} 27. Bc4 {[%clk 0:01:18.9]} 27... Be6 {[%clk
0:00:54]} 28. Qe4 {[%clk 0:01:02.6]} 28... Nb6 {[%clk 0:00:28.1]} 29. Bxe6
{[%clk 0:01:01.7]} 29... fxe6 {[%clk 0:00:29]} 30. Rd1 {[%clk 0:00:43.9]} 30...
Nc8 {[%clk 0:00:19.9]} 31. Nb5 {[%clk 0:00:43.7]} 31... Qb6 {[%clk 0:00:19.1]}
32. a4 {[%clk 0:00:36.1]} 32... Red7 {[%clk 0:00:19.7]} 33. Rxd7 {[%clk
0:00:24.6]} 33... Rxd7 {[%clk 0:00:20.6]} 34. Qg6 {[%clk 0:00:24.3]} 34... c4+
{[%clk 0:00:16.8]} 35. Kh1 {[%clk 0:00:20.8]} 35... Re7 {[%clk 0:00:12.6]} 36.
Qe4 {[%clk 0:00:18.6]} 36... Qc5 {[%clk 0:00:07.2]} 37. Rd1 {[%clk 0:00:18.7]}
37... Re8 {[%clk 0:00:06.8]} 38. Nd6 {[%clk 0:00:18.3]} 38... Nxd6 {[%clk
0:00:06.2]} 39. exd6 {[%clk 0:00:19.2]} 39... e5 {[%clk 0:00:04.7]} 40. Qf5
{[%clk 0:00:06.3]} 40... Rd8 {[%clk 0:00:02.6]} 41. Qe6+ {[%clk 0:00:06.4]}
41... Kh7 {[%clk 0:00:01.9]} 42. d7 {[%clk 0:00:07.3]} 1-0

[Event "*** Titled Tuesday Blitz"]
[Site "Chess.com"]
[Date "2020.04.28"]
[Round "8"]
[White "jguerramzllo"]
[Black "Hasangatin_Ramil"]
[Result "1-0"]
[WhiteElo "2616"]
[BlackElo "2457"]
[TimeControl "180+1"]
[EndTime "11:36:13 PDT"]
[Termination "jguerramzllo won by checkmate"]

1. e4 {[%clk 0:03:00.9]} 1... c5 {[%clk 0:02:57.3]} 2. c3 {[%clk 0:02:58.5]}
2... Nf6 {[%clk 0:02:53.6]} 3. e5 {[%clk 0:02:57.3]} 3... Nd5 {[%clk 0:02:53.6]}
4. d4 {[%clk 0:02:50.6]} 4... cxd4 {[%clk 0:02:54.5]} 5. Nf3 {[%clk 0:02:49.3]}
5... e6 {[%clk 0:02:54.2]} 6. cxd4 {[%clk 0:02:47.4]} 6... b6 {[%clk 0:02:54.2]}
7. Nc3 {[%clk 0:02:23.2]} 7... Nxc3 {[%clk 0:02:52.1]} 8. bxc3 {[%clk
0:02:22.4]} 8... Bb7 {[%clk 0:02:53]} 9. Bd3 {[%clk 0:02:19.7]} 9... d6 {[%clk
0:02:53.1]} 10. O-O {[%clk 0:02:18.7]} 10... Be7 {[%clk 0:02:52.8]} 11. exd6
{[%clk 0:01:53.5]} 11... Bxd6 {[%clk 0:02:53.7]} 12. Ng5 {[%clk 0:01:38.4]}
12... h6 {[%clk 0:02:08.4]} 13. Qh5 {[%clk 0:01:28.3]} 13... O-O {[%clk
0:02:07.9]} 14. Bh7+ {[%clk 0:01:18.5]} 14... Kh8 {[%clk 0:02:07.4]} 15. Nxf7+
{[%clk 0:01:19.1]} 15... Rxf7 {[%clk 0:02:07.2]} 16. Qxf7 {[%clk 0:01:19.8]}
16... Kxh7 {[%clk 0:02:07.5]} 17. Qxb7 {[%clk 0:01:19.5]} 17... Nd7 {[%clk
0:01:51.6]} 18. Qe4+ {[%clk 0:01:17.7]} 18... Kh8 {[%clk 0:01:51.2]} 19. Qxe6
{[%clk 0:01:17.4]} 19... Qc7 {[%clk 0:01:49.6]} 20. Bxh6 {[%clk 0:01:08.1]}
20... Nf8 {[%clk 0:01:16.9]} 21. Qe4 {[%clk 0:01:04.1]} 21... Rd8 {[%clk
0:00:56.4]} 22. Bg5 {[%clk 0:01:01.2]} 22... Rc8 {[%clk 0:00:41.3]} 23. Qh4+
{[%clk 0:00:53.8]} 23... Kg8 {[%clk 0:00:40.8]} 24. Rac1 {[%clk 0:00:49.4]}
24... Qc4 {[%clk 0:00:39.5]} 25. Rc2 {[%clk 0:00:45.8]} 25... Qd3 {[%clk
0:00:36.9]} 26. Qh3 {[%clk 0:00:31.8]} 26... Qxh3 {[%clk 0:00:36]} 27. gxh3
{[%clk 0:00:31.1]} 27... Ne6 {[%clk 0:00:36.9]} 28. Be3 {[%clk 0:00:30.5]} 28...
g5 {[%clk 0:00:37]} 29. c4 {[%clk 0:00:28.8]} 29... Kf7 {[%clk 0:00:36.1]} 30.
c5 {[%clk 0:00:27.3]} 30... bxc5 {[%clk 0:00:35.5]} 31. dxc5 {[%clk 0:00:27.8]}
31... Be5 {[%clk 0:00:34.7]} 32. c6 {[%clk 0:00:26.4]} 32... Ke7 {[%clk
0:00:29.6]} 33. Rd1 {[%clk 0:00:25.4]} 33... Rc7 {[%clk 0:00:28.4]} 34. Rd5
{[%clk 0:00:20.6]} 34... Kf6 {[%clk 0:00:27.7]} 35. Rd7 {[%clk 0:00:20.5]} 35...
a6 {[%clk 0:00:26.8]} 36. Rxc7 {[%clk 0:00:20.1]} 36... Nxc7 {[%clk 0:00:27.7]}
37. Kg2 {[%clk 0:00:19.5]} 37... Ke6 {[%clk 0:00:26.9]} 38. Bxg5 {[%clk
0:00:18.4]} 38... Kd5 {[%clk 0:00:27.1]} 39. Bh4 {[%clk 0:00:17.9]} 39... Nb5
{[%clk 0:00:21.8]} 40. Bg3 {[%clk 0:00:17.9]} 40... Bc7 {[%clk 0:00:21.7]} 41.
Bxc7 {[%clk 0:00:17]} 41... Nxc7 {[%clk 0:00:22.6]} 42. h4 {[%clk 0:00:17.5]}
42... Ke5 {[%clk 0:00:22.5]} 43. h5 {[%clk 0:00:18]} 43... Kf5 {[%clk
0:00:22.8]} 44. h6 {[%clk 0:00:16.5]} 44... Kg6 {[%clk 0:00:21.2]} 45. Rd2
{[%clk 0:00:16.9]} 45... Kxh6 {[%clk 0:00:20.7]} 46. Rd7 {[%clk 0:00:17.5]}
46... Nb5 {[%clk 0:00:21.6]} 47. c7 {[%clk 0:00:17.6]} 47... Nxc7 {[%clk
0:00:22.5]} 48. Rxc7 {[%clk 0:00:17.9]} 48... Kg6 {[%clk 0:00:23.3]} 49. Rc6+
{[%clk 0:00:18.5]} 49... Kf5 {[%clk 0:00:24.2]} 50. Rxa6 {[%clk 0:00:19]} 50...
Ke4 {[%clk 0:00:25.1]} 51. Ra4+ {[%clk 0:00:19.1]} 51... Kd3 {[%clk 0:00:26]}
52. h4 {[%clk 0:00:19.2]} 52... Kc2 {[%clk 0:00:26.9]} 53. h5 {[%clk 0:00:19.6]}
53... Kb1 {[%clk 0:00:27.8]} 54. h6 {[%clk 0:00:19.9]} 54... Ka1 {[%clk
0:00:28.7]} 55. h7 {[%clk 0:00:20.2]} 55... Kb2 {[%clk 0:00:29.6]} 56. h8=Q+
{[%clk 0:00:19.9]} 56... Kb1 {[%clk 0:00:29.5]} 57. Rb4+ {[%clk 0:00:17.9]}
57... Kc2 {[%clk 0:00:30.4]} 58. Qb2+ {[%clk 0:00:17.4]} 58... Kd1 {[%clk
0:00:30.1]} 59. Rd4+ {[%clk 0:00:17.2]} 59... Ke1 {[%clk 0:00:31]} 60. Qd2#
{[%clk 0:00:17.2]} 1-0

[Event "*** Titled Tuesday Blitz"]
[Site "Chess.com"]
[Date "2020.04.28"]
[Round "8"]
[White "PIwan"]
[Black "Biranidun"]
[Result "1/2-1/2"]
[WhiteElo "2561"]
[BlackElo "2713"]
[TimeControl "180+1"]
[EndTime "11:36:14 PDT"]
[Termination "Game drawn by repetition"]

1. c4 {[%clk 0:03:00.9]} 1... e5 {[%clk 0:02:58.2]} 2. Nc3 {[%clk 0:03:01.2]}
2... Nf6 {[%clk 0:02:53.1]} 3. Nf3 {[%clk 0:03:01]} 3... Nc6 {[%clk 0:02:52.4]}
4. e3 {[%clk 0:03:01.5]} 4... Bb4 {[%clk 0:02:50.5]} 5. Qc2 {[%clk 0:03:02.1]}
5... Bxc3 {[%clk 0:02:49.8]} 6. Qxc3 {[%clk 0:03:02.8]} 6... Qe7 {[%clk
0:02:50.4]} 7. d4 {[%clk 0:03:02.9]} 7... Ne4 {[%clk 0:02:49]} 8. Qd3 {[%clk
0:03:02.8]} 8... exd4 {[%clk 0:02:49.4]} 9. Nxd4 {[%clk 0:03:02.7]} 9... O-O
{[%clk 0:02:49.6]} 10. Nxc6 {[%clk 0:02:55.9]} 10... dxc6 {[%clk 0:02:49.4]} 11.
Be2 {[%clk 0:02:11.8]} 11... Qb4+ {[%clk 0:02:48.9]} 12. Kf1 {[%clk 0:02:02.8]}
12... Bf5 {[%clk 0:02:48]} 13. Qb3 {[%clk 0:01:59.3]} 13... Qxb3 {[%clk
0:02:37.9]} 14. axb3 {[%clk 0:02:00.2]} 14... Nc5 {[%clk 0:02:38.6]} 15. Ra3
{[%clk 0:01:53.1]} 15... Bc2 {[%clk 0:02:21.9]} 16. Bd2 {[%clk 0:01:26.3]} 16...
Nxb3 {[%clk 0:02:21.3]} 17. Bc3 {[%clk 0:01:22]} 17... Rfd8 {[%clk 0:02:20.4]}
18. f3 {[%clk 0:01:20.4]} 18... a5 {[%clk 0:02:04.2]} 19. Kf2 {[%clk 0:01:17.7]}
19... c5 {[%clk 0:02:02.4]} 20. e4 {[%clk 0:01:04.2]} 20... a4 {[%clk
0:01:57.7]} 21. Ke3 {[%clk 0:01:02.9]} 21... Ra6 {[%clk 0:01:52.6]} 22. f4
{[%clk 0:00:59.2]} 22... f5 {[%clk 0:01:48.7]} 23. exf5 {[%clk 0:00:51.5]} 23...
Bxf5 {[%clk 0:01:48.5]} 24. Bf3 {[%clk 0:00:49.1]} 24... Re6+ {[%clk 0:01:33.7]}
25. Kf2 {[%clk 0:00:41.5]} 25... Be4 {[%clk 0:01:25.3]} 26. Rxa4 {[%clk
0:00:36.9]} 26... Bxf3 {[%clk 0:01:25.3]} 27. gxf3 {[%clk 0:00:33]} 27... g6
{[%clk 0:00:41.5]} 28. Ra7 {[%clk 0:00:32.3]} 28... Rb6 {[%clk 0:00:38.6]} 29.
f5 {[%clk 0:00:28.4]} 29... Nd4 {[%clk 0:00:30.8]} 30. fxg6 {[%clk 0:00:27.7]}
30... hxg6 {[%clk 0:00:31.7]} 31. Re1 {[%clk 0:00:27.7]} 31... Kf7 {[%clk
0:00:31.3]} 32. Ra5 {[%clk 0:00:27.5]} 32... Ne6 {[%clk 0:00:31]} 33. Re4 {[%clk
0:00:18.7]} 33... g5 {[%clk 0:00:26.8]} 34. Ra1 {[%clk 0:00:18.2]} 34... Rbd6
{[%clk 0:00:22.3]} 35. h4 {[%clk 0:00:17.8]} 35... Rd1 {[%clk 0:00:14.2]} 36.
Rxd1 {[%clk 0:00:15.6]} 36... Rxd1 {[%clk 0:00:15.1]} 37. hxg5 {[%clk
0:00:13.4]} 37... Nxg5 {[%clk 0:00:16]} 38. Rf4+ {[%clk 0:00:13.2]} 38... Ke6
{[%clk 0:00:13.7]} 39. Rf6+ {[%clk 0:00:12.1]} 39... Kd7 {[%clk 0:00:13.8]} 40.
Rg6 {[%clk 0:00:11.8]} 40... Ne6 {[%clk 0:00:14]} 41. Rh6 {[%clk 0:00:08.3]}
41... b6 {[%clk 0:00:11.9]} 42. Rh7+ {[%clk 0:00:07.3]} 42... Kd6 {[%clk
0:00:12.3]} 43. Rh6 {[%clk 0:00:08.2]} 43... Kd7 {[%clk 0:00:07.7]} 44. Rh7+
{[%clk 0:00:08.2]} 44... Kd6 {[%clk 0:00:08.3]} 45. Rh6 {[%clk 0:00:07.5]} 45...
Ke7 {[%clk 0:00:07.5]} 46. Rh7+ {[%clk 0:00:07.2]} 46... Kd6 {[%clk 0:00:07.9]}
1/2-1/2

[Event "*** Titled Tuesday Blitz"]
[Site "Chess.com"]
[Date "2020.04.28"]
[Round "8"]
[White "AlexTriapishko"]
[Black "MaxVavulin"]
[Result "1-0"]
[WhiteElo "2750"]
[BlackElo "2604"]
[TimeControl "180+1"]
[EndTime "11:36:15 PDT"]
[Termination "AlexTriapishko won by resignation"]

1. Nf3 {[%clk 0:02:53.5]} 1... Nf6 {[%clk 0:02:59.1]} 2. g3 {[%clk 0:02:40.1]}
2... b6 {[%clk 0:02:58.1]} 3. b3 {[%clk 0:02:36.2]} 3... Bb7 {[%clk 0:02:57.3]}
4. Bg2 {[%clk 0:02:36.1]} 4... c5 {[%clk 0:02:55.2]} 5. Bb2 {[%clk 0:02:36.1]}
5... g6 {[%clk 0:02:54]} 6. Bxf6 {[%clk 0:02:34.5]} 6... exf6 {[%clk 0:02:53.7]}
7. c4 {[%clk 0:02:35.4]} 7... d5 {[%clk 0:02:51.7]} 8. Nh4 {[%clk 0:02:25.9]}
8... Qd7 {[%clk 0:02:45.5]} 9. Nc3 {[%clk 0:02:23]} 9... d4 {[%clk 0:02:33]} 10.
Bxb7 {[%clk 0:02:18.1]} 10... Qxb7 {[%clk 0:02:32.9]} 11. Nd5 {[%clk 0:02:18.6]}
11... Bg7 {[%clk 0:02:32]} 12. O-O {[%clk 0:02:18.7]} 12... O-O {[%clk
0:02:31.7]} 13. e3 {[%clk 0:02:17.1]} 13... f5 {[%clk 0:02:24.5]} 14. Qf3 {[%clk
0:02:13.6]} 14... Nc6 {[%clk 0:02:17.2]} 15. Rad1 {[%clk 0:01:58.5]} 15... Rab8
{[%clk 0:02:12.3]} 16. Qg2 {[%clk 0:01:42.4]} 16... Rfe8 {[%clk 0:02:05]} 17.
Nf3 {[%clk 0:01:18.1]} 17... Ne7 {[%clk 0:01:53.1]} 18. Nxe7+ {[%clk 0:01:09]}
18... Rxe7 {[%clk 0:01:53.6]} 19. exd4 {[%clk 0:01:08.7]} 19... cxd4 {[%clk
0:01:53.5]} 20. Ne1 {[%clk 0:01:01.5]} 20... Qa6 {[%clk 0:01:38]} 21. a4 {[%clk
0:01:00.2]} 21... Qa5 {[%clk 0:01:27.9]} 22. Nd3 {[%clk 0:00:58.5]} 22... Re4
{[%clk 0:01:27]} 23. f3 {[%clk 0:00:57.4]} 23... Re7 {[%clk 0:01:24.8]} 24. Rfe1
{[%clk 0:00:57]} 24... Rbe8 {[%clk 0:01:24.4]} 25. Rxe7 {[%clk 0:00:54.3]} 25...
Rxe7 {[%clk 0:01:24.5]} 26. Kf1 {[%clk 0:00:54.8]} 26... h5 {[%clk 0:01:23]} 27.
Re1 {[%clk 0:00:53.2]} 27... Rxe1+ {[%clk 0:00:48]} 28. Kxe1 {[%clk 0:00:54.1]}
28... f4 {[%clk 0:00:48.5]} 29. g4 {[%clk 0:00:34.7]} 29... Qg5 {[%clk
0:00:41.2]} 30. h3 {[%clk 0:00:33.6]} 30... Bf8 {[%clk 0:00:35.3]} 31. Kd1
{[%clk 0:00:27.2]} 31... a6 {[%clk 0:00:24.4]} 32. Qf2 {[%clk 0:00:25.9]} 32...
Bg7 {[%clk 0:00:20.2]} 33. Kc2 {[%clk 0:00:26]} 33... b5 {[%clk 0:00:19.3]} 34.
axb5 {[%clk 0:00:16.5]} 34... axb5 {[%clk 0:00:19.2]} 35. c5 {[%clk 0:00:05.7]}
35... Bf8 {[%clk 0:00:16.3]} 36. Qxd4 {[%clk 0:00:04.6]} 36... Qh4 {[%clk
0:00:14.8]} 37. gxh5 {[%clk 0:00:03.3]} 37... g5 {[%clk 0:00:10]} 38. Qe4 {[%clk
0:00:02.6]} 38... Qxh3 {[%clk 0:00:09.5]} 39. b4 {[%clk 0:00:03.1]} 39... Qxh5
{[%clk 0:00:07.5]} 40. c6 {[%clk 0:00:03.5]} 40... Qh3 {[%clk 0:00:04.3]} 41. c7
{[%clk 0:00:03.4]} 41... Qc8 {[%clk 0:00:02.6]} 42. Qc6 {[%clk 0:00:03.9]} 42...
Kg7 {[%clk 0:00:01.9]} 43. Ne5 {[%clk 0:00:04]} 43... f6 {[%clk 0:00:01.3]} 44.
Qd7+ {[%clk 0:00:04.2]} 44... Qxd7 {[%clk 0:00:01.4]} 45. Nxd7 {[%clk
0:00:05.1]} 1-0

[Event "*** Titled Tuesday Blitz"]
[Site "Chess.com"]
[Date "2020.04.28"]
[Round "8"]
[White "mirceaparligras"]
[Black "FranciscodelaF"]
[Result "1-0"]
[WhiteElo "2677"]
[BlackElo "2412"]
[TimeControl "180+1"]
[EndTime "11:36:17 PDT"]
[Termination "mirceaparligras won by resignation"]

1. d4 {[%clk 0:03:00.9]} 1... d5 {[%clk 0:02:59.2]} 2. c4 {[%clk 0:03:00.4]}
2... e6 {[%clk 0:02:59.5]} 3. Nf3 {[%clk 0:03:00.1]} 3... Nf6 {[%clk 0:02:57.5]}
4. Nc3 {[%clk 0:02:59.8]} 4... Be7 {[%clk 0:02:55.7]} 5. Bf4 {[%clk 0:02:59.2]}
5... O-O {[%clk 0:02:39.3]} 6. e3 {[%clk 0:02:59.3]} 6... b6 {[%clk 0:02:35.6]}
7. cxd5 {[%clk 0:02:54.7]} 7... Nxd5 {[%clk 0:02:35.8]} 8. Nxd5 {[%clk
0:02:52.8]} 8... Qxd5 {[%clk 0:02:35.8]} 9. Bd3 {[%clk 0:02:52.7]} 9... Qa5+
{[%clk 0:02:31.1]} 10. Nd2 {[%clk 0:02:48.2]} 10... Ba6 {[%clk 0:02:26.9]} 11.
Bxa6 {[%clk 0:02:42.1]} 11... Nxa6 {[%clk 0:02:24.7]} 12. O-O {[%clk 0:02:40.2]}
12... c5 {[%clk 0:02:23.7]} 13. dxc5 {[%clk 0:02:12.8]} 13... Rad8 {[%clk
0:01:59.3]} 14. e4 {[%clk 0:02:11.7]} 14... e5 {[%clk 0:01:53.9]} 15. Be3 {[%clk
0:01:47.8]} 15... Bxc5 {[%clk 0:01:53.2]} 16. Bg5 {[%clk 0:01:41.7]} 16... h6
{[%clk 0:01:01.3]} 17. Bxd8 {[%clk 0:01:32.2]} 17... Rxd8 {[%clk 0:01:02.2]} 18.
Nc4 {[%clk 0:01:24]} 18... Rxd1 {[%clk 0:01:01.4]} 19. Nxa5 {[%clk 0:01:24.9]}
19... Rxa1 {[%clk 0:00:56.8]} 20. Rxa1 {[%clk 0:01:25.8]} 20... bxa5 {[%clk
0:00:57.1]} 21. Rc1 {[%clk 0:01:16.8]} 21... Kf8 {[%clk 0:00:56.1]} 22. Kf1
{[%clk 0:01:16.5]} 22... Ke7 {[%clk 0:00:56.3]} 23. Ke2 {[%clk 0:01:16.5]} 23...
Kd7 {[%clk 0:00:51.3]} 24. a3 {[%clk 0:01:11.4]} 24... Bd4 {[%clk 0:00:50.5]}
25. Rc2 {[%clk 0:01:11.7]} 25... Nc5 {[%clk 0:00:49.1]} 26. f3 {[%clk
0:01:11.9]} 26... a4 {[%clk 0:00:47.7]} 27. Rc4 {[%clk 0:01:06.7]} 27... a5
{[%clk 0:00:37.4]} 28. Kd2 {[%clk 0:00:59.6]} 28... Kc6 {[%clk 0:00:35.6]} 29.
Rc2 {[%clk 0:00:58.3]} 29... Kb5 {[%clk 0:00:32.2]} 30. Ke2 {[%clk 0:00:56.5]}
30... Bg1 {[%clk 0:00:32.6]} 31. h3 {[%clk 0:00:55.5]} 31... h5 {[%clk
0:00:31.1]} 32. Kf1 {[%clk 0:00:49.4]} 32... Bd4 {[%clk 0:00:30.4]} 33. Ke2
{[%clk 0:00:45.8]} 33... h4 {[%clk 0:00:29.5]} 34. Kd2 {[%clk 0:00:44.7]} 34...
g5 {[%clk 0:00:29.2]} 35. Ke2 {[%clk 0:00:44.4]} 35... Nb3 {[%clk 0:00:19]} 36.
Kd3 {[%clk 0:00:39.5]} 36... Bc5 {[%clk 0:00:18.9]} 37. Kc3 {[%clk 0:00:32.2]}
37... Bd4+ {[%clk 0:00:19]} 38. Kd3 {[%clk 0:00:32.2]} 38... Nc5+ {[%clk
0:00:19.4]} 39. Kd2 {[%clk 0:00:31.6]} 39... Nd7 {[%clk 0:00:17.9]} 40. Kc1
{[%clk 0:00:29.2]} 40... Nc5 {[%clk 0:00:17.1]} 41. Kd2 {[%clk 0:00:29.5]} 41...
Nd7 {[%clk 0:00:16.8]} 42. Kc1 {[%clk 0:00:29.8]} 42... Be3+ {[%clk 0:00:17.3]}
43. Kd1 {[%clk 0:00:29.6]} 43... Nc5 {[%clk 0:00:17.2]} 44. Rc3 {[%clk 0:00:28]}
44... Bd4 {[%clk 0:00:17.2]} 45. Rc2 {[%clk 0:00:27.9]} 45... Nd3 {[%clk
0:00:17.6]} 46. Rc7 {[%clk 0:00:26.5]} 46... Bxb2 {[%clk 0:00:17.9]} 47. Kc2
{[%clk 0:00:24.2]} 47... Kb6 {[%clk 0:00:14.7]} 48. Rxf7 {[%clk 0:00:22]} 48...
Bxa3 {[%clk 0:00:14.6]} 49. Kxd3 {[%clk 0:00:22.3]} 49... Bd6 {[%clk 0:00:14.3]}
50. Kc2 {[%clk 0:00:21.1]} 50... a3 {[%clk 0:00:14.3]} 51. Kb3 {[%clk
0:00:21.2]} 51... a4+ {[%clk 0:00:14.9]} 52. Ka2 {[%clk 0:00:21]} 52... Kc5
{[%clk 0:00:14.7]} 53. Rg7 {[%clk 0:00:20.8]} 53... Kd4 {[%clk 0:00:13.6]} 54.
Rxg5 {[%clk 0:00:21.2]} 54... Bb4 {[%clk 0:00:14.3]} 55. g3 {[%clk 0:00:21.2]}
55... Be1 {[%clk 0:00:15.1]} 56. gxh4 {[%clk 0:00:20.4]} 56... Bxh4 {[%clk
0:00:14.7]} 57. Rg4 {[%clk 0:00:21.3]} 57... Be7 {[%clk 0:00:14.5]} 58. h4
{[%clk 0:00:21.6]} 58... Ke3 {[%clk 0:00:15.4]} 59. h5 {[%clk 0:00:22]} 59...
Kxf3 {[%clk 0:00:15.8]} 60. Rg6 {[%clk 0:00:21.7]} 60... Bf8 {[%clk 0:00:14.8]}
61. Rf6+ {[%clk 0:00:21.2]} 1-0